[Event "Titled Tuesday Blitz January 31 Late 2023"]
[White "Sai Han Thiha"]
[Black "Oganian, Miran"]
[WhiteFideId "13012290"]
[BlackFideId "4122488"]
[WhiteElo "2070"]
[BlackElo "2439"]
[Result "0-1"]
[Round "01"]
[TimeControl "180+2"]
[Date "2023.01.31"]
[WhiteClock "0:00:03"]
[BlackClock "0:01:42"]

1. d4 {[%clk 0:03:00]}  e6 {[%clk 0:03:00]} 2. c4 {[%clk 0:03:01]}  d5 {[%clk 0:03:00]} 3. Nc3 {[%clk 0:03:00]}  a6 {[%clk 0:03:00]} 4. cxd5 {[%clk 0:03:00]}  exd5 {[%clk 0:03:01]} 5. Nf3 {[%clk 0:03:01]}  Nf6 {[%clk 0:03:01]} 6. Bg5 {[%clk 0:03:01]}  c6 {[%clk 0:03:01]} 7. e3 {[%clk 0:03:02]}  Nbd7 {[%clk 0:03:01]} 8. Bd3 {[%clk 0:03:00]}  Be7 {[%clk 0:03:00]} 9. O-O {[%clk 0:02:55]}  O-O {[%clk 0:03:00]} 10. Qc2 {[%clk 0:02:48]}  Re8 {[%clk 0:02:56]} 11. h3 {[%clk 0:01:41]}  Nf8 {[%clk 0:02:55]} 12. Bf4 {[%clk 0:01:41]}  Ng6 {[%clk 0:02:54]} 13. Bh2 {[%clk 0:01:42]}  Bd6 {[%clk 0:02:54]} 14. Bxd6 {[%clk 0:01:41]}  Qxd6 {[%clk 0:02:55]} 15. Rfe1 {[%clk 0:01:33]}  Bd7 {[%clk 0:02:54]} 16. Rad1 {[%clk 0:01:31]}  Re7 {[%clk 0:02:53]} 17. a3 {[%clk 0:01:21]}  Rae8 {[%clk 0:02:52]} 18. Nd2 {[%clk 0:01:04]}  Nh4 {[%clk 0:02:48]} 19. b4 {[%clk 0:00:54]}  Kh8 {[%clk 0:02:28]} 20. Na4 {[%clk 0:00:51]}  Ne4 {[%clk 0:02:27]} 21. Nxe4 {[%clk 0:00:30]}  dxe4 {[%clk 0:02:26]} 22. Bf1 {[%clk 0:00:31]}  Qg6 {[%clk 0:02:26]} 23. Kh1 {[%clk 0:00:31]}  Qd6 {[%clk 0:02:15]} 24. Qc5 {[%clk 0:00:30]}  Qh6 {[%clk 0:02:13]} 25. Rc1 {[%clk 0:00:20]}  Re6 {[%clk 0:02:10]} 26. Qc2 {[%clk 0:00:13]}  Rg6 {[%clk 0:02:09]} 27. Nb6 {[%clk 0:00:04]}  Bxh3 {[%clk 0:02:02]} 28. gxh3 {[%clk 0:00:04]}  Nf3 {[%clk 0:02:03]} 29. Bg2 {[%clk 0:00:03]}  Nh4 {[%clk 0:01:41]} 30. Rg1 {[%clk 0:00:01]}  Nxg2 {[%clk 0:01:41]} 31. Rxg2 {[%clk 0:00:02]}  Qxh3+ {[%clk 0:01:42]} 32. Rh2 {[%clk 0:00:03]}  Qf3+ {[%clk 0:01:42]} 0-1


[Site "https://www.chess.com"]

[Event "Titled Tuesday Blitz January 31 Late 2023"]
[White "Mazurkiewicz, Michal"]
[Black "Krysa, Leandro"]
[WhiteFideId "1124943"]
[BlackFideId "116807"]
[WhiteElo "2145"]
[BlackElo "2541"]
[Result "0-1"]
[Round "01"]
[TimeControl "180+2"]
[Date "2023.01.31"]
[WhiteClock "0:00:02"]
[BlackClock "0:00:03"]

1. e4 {[%clk 0:02:59]}  e5 {[%clk 0:02:43]} 2. Nf3 {[%clk 0:02:59]}  Nf6 {[%clk 0:02:43]} 3. d3 {[%clk 0:02:59]}  Nc6 {[%clk 0:02:42]} 4. g3 {[%clk 0:02:59]}  d5 {[%clk 0:02:42]} 5. exd5 {[%clk 0:03:00]}  Nxd5 {[%clk 0:02:41]} 6. Bg2 {[%clk 0:03:01]}  g6 {[%clk 0:02:41]} 7. O-O {[%clk 0:03:01]}  Bg7 {[%clk 0:02:42]} 8. Re1 {[%clk 0:03:02]}  O-O {[%clk 0:02:41]} 9. c3 {[%clk 0:02:57]}  a5 {[%clk 0:02:38]} 10. Nbd2 {[%clk 0:02:56]}  Re8 {[%clk 0:02:37]} 11. a4 {[%clk 0:02:55]}  Nb6 {[%clk 0:02:32]} 12. Ne4 {[%clk 0:02:41]}  h6 {[%clk 0:02:31]} 13. Be3 {[%clk 0:02:05]}  Nd5 {[%clk 0:02:30]} 14. Qb3 {[%clk 0:01:16]}  Nxe3 {[%clk 0:02:27]} 15. Rxe3 {[%clk 0:01:17]}  Rb8 {[%clk 0:02:22]} 16. Nc5 {[%clk 0:01:05]}  b6 {[%clk 0:02:08]} 17. Qb5 {[%clk 0:01:02]}  Qd6 {[%clk 0:01:58]} 18. Ne4 {[%clk 0:00:34]}  Qd7 {[%clk 0:01:37]} 19. Nfd2 {[%clk 0:00:33]}  Ne7 {[%clk 0:01:29]} 20. Nc4 {[%clk 0:00:20]}  Qxb5 {[%clk 0:01:18]} 21. axb5 {[%clk 0:00:21]}  Bd7 {[%clk 0:01:15]} 22. Na3 {[%clk 0:00:08]}  Rbd8 {[%clk 0:01:15]} 23. Rae1 {[%clk 0:00:08]}  Nd5 {[%clk 0:01:11]} 24. R3e2 {[%clk 0:00:08]}  Bg4 {[%clk 0:01:11]} 25. f3 {[%clk 0:00:08]}  Bc8 {[%clk 0:01:09]} 26. h3 {[%clk 0:00:08]}  Ne7 {[%clk 0:00:49]} 27. Nc4 {[%clk 0:00:05]}  Rxd3 {[%clk 0:00:45]} 28. Nf2 {[%clk 0:00:05]}  Rdd8 {[%clk 0:00:32]} 29. Nxe5 {[%clk 0:00:06]}  Bxe5 {[%clk 0:00:19]} 30. Rxe5 {[%clk 0:00:06]}  Kf8 {[%clk 0:00:20]} 31. f4 {[%clk 0:00:06]}  Nf5 {[%clk 0:00:19]} 32. Ne4 {[%clk 0:00:06]}  Rxe5 {[%clk 0:00:16]} 33. fxe5 {[%clk 0:00:06]}  Bb7 {[%clk 0:00:16]} 34. g4 {[%clk 0:00:06]}  Bxe4 {[%clk 0:00:13]} 35. Bxe4 {[%clk 0:00:07]}  Ne7 {[%clk 0:00:11]} 36. Re2 {[%clk 0:00:07]}  Rd1+ {[%clk 0:00:10]} 37. Kf2 {[%clk 0:00:07]}  Ke8 {[%clk 0:00:10]} 38. Ke3 {[%clk 0:00:08]}  Kd7 {[%clk 0:00:10]} 39. Rd2+ {[%clk 0:00:08]}  Rxd2 {[%clk 0:00:10]} 40. Kxd2 {[%clk 0:00:09]}  Ke6 {[%clk 0:00:11]} 41. Ke3 {[%clk 0:00:08]}  Kxe5 {[%clk 0:00:11]} 42. Bf3 {[%clk 0:00:09]}  f5 {[%clk 0:00:11]} 43. gxf5 {[%clk 0:00:08]}  Nxf5+ {[%clk 0:00:10]} 44. Kd3 {[%clk 0:00:07]}  g5 {[%clk 0:00:07]} 45. Bg4 {[%clk 0:00:06]}  Nd6 {[%clk 0:00:07]} 46. c4 {[%clk 0:00:07]}  Ne4 {[%clk 0:00:06]} 47. Bc8 {[%clk 0:00:06]}  Nc5+ {[%clk 0:00:05]} 48. Kc3 {[%clk 0:00:06]}  h5 {[%clk 0:00:05]} 49. b4 {[%clk 0:00:06]}  axb4+ {[%clk 0:00:04]} 50. Kxb4 {[%clk 0:00:07]}  Kf4 {[%clk 0:00:04]} 51. Kc3 {[%clk 0:00:05]}  g4 {[%clk 0:00:05]} 52. hxg4 {[%clk 0:00:05]}  hxg4 {[%clk 0:00:05]} 53. Kd4 {[%clk 0:00:06]}  g3 {[%clk 0:00:05]} 54. Bh3 {[%clk 0:00:06]}  Nb3+ {[%clk 0:00:03]} 55. Kd5 {[%clk 0:00:07]}  Nd2 {[%clk 0:00:04]} 56. Kc6 {[%clk 0:00:04]}  Nxc4 {[%clk 0:00:04]} 57. Kxc7 {[%clk 0:00:04]}  Ke5 {[%clk 0:00:04]} 58. Kc6 {[%clk 0:00:05]}  Kd4 {[%clk 0:00:04]} 59. Bf1 {[%clk 0:00:05]}  Kc3 {[%clk 0:00:03]} 60. Bg2 {[%clk 0:00:02]}  Kb4 {[%clk 0:00:03]} 61. Bf1 {[%clk 0:00:03]}  Ka5 {[%clk 0:00:03]} 62. Bg2 {[%clk 0:00:03]}  Na3 {[%clk 0:00:03]} 63. Bf1 {[%clk 0:00:03]}  Nxb5 {[%clk 0:00:03]} 64. Bxb5 {[%clk 0:00:02]}  g2 {[%clk 0:00:03]} 65. Be2 {[%clk 0:00:02]}  g1=Q {[%clk 0:00:03]} 0-1


[Site "https://www.chess.com"]

[Event "Titled Tuesday Blitz January 31 Late 2023"]
[White "Nazari, Arad"]
[Black "Freile Martin, Javier"]
[WhiteFideId "12577324"]
[BlackFideId "3600165"]
[WhiteElo "2367"]
[BlackElo "2329"]
[Result "1-0"]
[Round "01"]
[TimeControl "180+2"]
[Date "2023.01.31"]
[WhiteClock "0:00:15"]
[BlackClock "0:01:00"]

1. e4 {[%clk 0:03:00]}  c5 {[%clk 0:02:58]} 2. Nf3 {[%clk 0:02:59]}  d6 {[%clk 0:02:58]} 3. Bb5+ {[%clk 0:02:52]}  Nd7 {[%clk 0:02:57]} 4. d4 {[%clk 0:02:51]}  cxd4 {[%clk 0:02:56]} 5. Qxd4 {[%clk 0:02:52]}  Nf6 {[%clk 0:02:55]} 6. O-O {[%clk 0:02:51]}  e6 {[%clk 0:02:54]} 7. c4 {[%clk 0:02:50]}  Be7 {[%clk 0:02:54]} 8. b3 {[%clk 0:02:40]}  O-O {[%clk 0:02:53]} 9. Bxd7 {[%clk 0:02:39]}  Bxd7 {[%clk 0:02:52]} 10. Nc3 {[%clk 0:02:39]}  Qc7 {[%clk 0:02:52]} 11. a4 {[%clk 0:02:38]}  Rfd8 {[%clk 0:02:50]} 12. Ba3 {[%clk 0:02:39]}  a6 {[%clk 0:02:48]} 13. Rfd1 {[%clk 0:02:38]}  Be8 {[%clk 0:02:48]} 14. Rac1 {[%clk 0:02:39]}  Bf8 {[%clk 0:02:26]} 15. h3 {[%clk 0:02:31]}  Qb8 {[%clk 0:02:23]} 16. Qb6 {[%clk 0:02:27]}  Nd7 {[%clk 0:02:18]} 17. Qe3 {[%clk 0:02:25]}  Nf6 {[%clk 0:02:17]} 18. e5 {[%clk 0:02:19]}  dxe5 {[%clk 0:02:16]} 19. Bxf8 {[%clk 0:02:20]}  Rxd1+ {[%clk 0:02:13]} 20. Rxd1 {[%clk 0:02:20]}  Kxf8 {[%clk 0:02:13]} 21. Qc5+ {[%clk 0:02:19]}  Kg8 {[%clk 0:02:12]} 22. Nxe5 {[%clk 0:02:18]}  Qc8 {[%clk 0:02:06]} 23. Qe7 {[%clk 0:02:02]}  Qb8 {[%clk 0:01:38]} 24. Rd6 {[%clk 0:01:47]}  b5 {[%clk 0:01:34]} 25. axb5 {[%clk 0:01:39]}  axb5 {[%clk 0:01:34]} 26. c5 {[%clk 0:01:40]}  b4 {[%clk 0:01:31]} 27. Ne2 {[%clk 0:01:29]}  Ne4 {[%clk 0:01:25]} 28. Nd4 {[%clk 0:00:30]}  Nxd6 {[%clk 0:01:21]} 29. cxd6 {[%clk 0:00:28]}  Ra7 {[%clk 0:01:21]} 30. d7 {[%clk 0:00:18]}  Ra1+ {[%clk 0:01:17]} 31. Kh2 {[%clk 0:00:17]}  Bxd7 {[%clk 0:01:14]} 32. Qxf7+ {[%clk 0:00:14]}  Kh8 {[%clk 0:01:14]} 33. Qxd7 {[%clk 0:00:15]}  Qxe5+ {[%clk 0:01:13]} 34. g3 {[%clk 0:00:15]}  h6 {[%clk 0:01:10]} 35. Nxe6 {[%clk 0:00:15]}  Re1 {[%clk 0:01:03]} 36. Qe8+ {[%clk 0:00:14]}  Kh7 {[%clk 0:01:03]} 37. Nf8+ {[%clk 0:00:14]}  Kg8 {[%clk 0:01:02]} 38. Ne6+ {[%clk 0:00:15]}  Kh7 {[%clk 0:01:01]} 39. Nf8+ {[%clk 0:00:14]}  Kh8 {[%clk 0:01:00]} 40. Ng6+ {[%clk 0:00:14]}  Kh7 {[%clk 0:01:00]} 41. Nxe5 {[%clk 0:00:15]} 1-0


[Site "https://www.chess.com"]

[Event "Titled Tuesday Blitz January 31 Late 2023"]
[White "Bjelobrk, Igor"]
[Black "Can, Melih Kaan"]
[WhiteFideId "4300726"]
[BlackFideId "6317383"]
[WhiteElo "2403"]
[BlackElo "2069"]
[Result "1-0"]
[Round "01"]
[TimeControl "180+2"]
[Date "2023.01.31"]
[WhiteClock "0:02:03"]
[BlackClock "0:01:32"]

1. d4 {[%clk 0:03:00]}  d5 {[%clk 0:02:57]} 2. c4 {[%clk 0:02:58]}  c6 {[%clk 0:02:57]} 3. Nf3 {[%clk 0:02:54]}  Nf6 {[%clk 0:02:57]} 4. Nc3 {[%clk 0:02:54]}  e6 {[%clk 0:02:57]} 5. g3 {[%clk 0:02:53]}  dxc4 {[%clk 0:02:47]} 6. Bg2 {[%clk 0:02:52]}  b5 {[%clk 0:02:47]} 7. Ne5 {[%clk 0:02:50]}  Nd5 {[%clk 0:02:47]} 8. a4 {[%clk 0:02:49]}  Bb4 {[%clk 0:02:41]} 9. O-O {[%clk 0:02:44]}  Bxc3 {[%clk 0:02:33]} 10. bxc3 {[%clk 0:02:43]}  Bb7 {[%clk 0:02:33]} 11. Qc2 {[%clk 0:02:33]}  O-O {[%clk 0:02:31]} 12. e4 {[%clk 0:02:27]}  Nf6 {[%clk 0:02:30]} 13. Ba3 {[%clk 0:02:25]}  Re8 {[%clk 0:02:30]} 14. Rfb1 {[%clk 0:02:24]}  a6 {[%clk 0:02:28]} 15. Nxc4 {[%clk 0:02:23]}  Nbd7 {[%clk 0:02:23]} 16. Nd6 {[%clk 0:02:22]}  Qc7 {[%clk 0:02:13]} 17. Nxe8 {[%clk 0:02:18]}  Nxe8 {[%clk 0:02:10]} 18. c4 {[%clk 0:02:16]}  bxa4 {[%clk 0:01:55]} 19. Qxa4 {[%clk 0:02:12]}  a5 {[%clk 0:01:54]} 20. e5 {[%clk 0:02:09]}  Nb6 {[%clk 0:01:45]} 21. Qb3 {[%clk 0:02:07]}  Ra6 {[%clk 0:01:41]} 22. Bc5 {[%clk 0:02:06]}  a4 {[%clk 0:01:40]} 23. Qb4 {[%clk 0:02:05]}  Nd5 {[%clk 0:01:32]} 24. cxd5 {[%clk 0:02:03]} 1-0


[Site "https://www.chess.com"]

[Event "Titled Tuesday Blitz January 31 Late 2023"]
[White "Tristan, Leonardo"]
[Black "Pesotskiy, Mikhail"]
[WhiteFideId "113816"]
[BlackFideId "34164453"]
[WhiteElo "2545"]
[BlackElo "2153"]
[Result "0-1"]
[Round "01"]
[TimeControl "180+2"]
[Date "2023.01.31"]
[WhiteClock "0:00:10"]
[BlackClock "0:00:06"]

1. d4 {[%clk 0:03:00]}  Nf6 {[%clk 0:02:58]} 2. Nf3 {[%clk 0:03:01]}  e6 {[%clk 0:02:57]} 3. Bf4 {[%clk 0:03:01]}  c5 {[%clk 0:02:57]} 4. e3 {[%clk 0:03:01]}  Nc6 {[%clk 0:02:58]} 5. Nbd2 {[%clk 0:02:59]}  d5 {[%clk 0:02:56]} 6. c3 {[%clk 0:02:59]}  Nh5 {[%clk 0:02:40]} 7. Bg5 {[%clk 0:02:58]}  Qb6 {[%clk 0:02:41]} 8. dxc5 {[%clk 0:02:58]}  Qxb2 {[%clk 0:02:32]} 9. Nd4 {[%clk 0:02:57]}  Nf6 {[%clk 0:02:29]} 10. Rb1 {[%clk 0:02:42]}  Qxc3 {[%clk 0:02:23]} 11. Nb5 {[%clk 0:02:42]}  Qa5 {[%clk 0:02:23]} 12. Bxf6 {[%clk 0:02:25]}  gxf6 {[%clk 0:02:24]} 13. Nd6+ {[%clk 0:02:26]}  Bxd6 {[%clk 0:02:24]} 14. cxd6 {[%clk 0:02:27]}  Qd8 {[%clk 0:02:08]} 15. Qf3 {[%clk 0:02:23]}  Ne5 {[%clk 0:02:00]} 16. Qf4 {[%clk 0:02:20]}  Rg8 {[%clk 0:01:44]} 17. Bb5+ {[%clk 0:02:20]}  Bd7 {[%clk 0:01:45]} 18. O-O {[%clk 0:02:20]}  b6 {[%clk 0:01:37]} 19. Rfc1 {[%clk 0:02:18]}  Rg4 {[%clk 0:01:32]} 20. Bxd7+ {[%clk 0:02:16]}  Kxd7 {[%clk 0:01:33]} 21. Qh6 {[%clk 0:02:14]}  Kxd6 {[%clk 0:01:31]} 22. h3 {[%clk 0:01:58]}  Ra4 {[%clk 0:01:11]} 23. Qxh7 {[%clk 0:01:53]}  Rc8 {[%clk 0:01:05]} 24. f4 {[%clk 0:01:46]}  Rxc1+ {[%clk 0:01:02]} 25. Rxc1 {[%clk 0:01:46]}  Nc4 {[%clk 0:01:03]} 26. Nxc4+ {[%clk 0:01:21]}  Rxc4 {[%clk 0:01:04]} 27. Rd1 {[%clk 0:01:22]}  Qc7 {[%clk 0:00:56]} 28. Kh2 {[%clk 0:01:22]}  Ke7 {[%clk 0:00:51]} 29. Qd3 {[%clk 0:01:17]}  Qc5 {[%clk 0:00:35]} 30. Re1 {[%clk 0:01:12]}  Rc2 {[%clk 0:00:28]} 31. Qa6 {[%clk 0:00:40]}  Qc3 {[%clk 0:00:28]} 32. Re2 {[%clk 0:00:32]}  Rxe2 {[%clk 0:00:24]} 33. Qxe2 {[%clk 0:00:33]}  e5 {[%clk 0:00:17]} 34. h4 {[%clk 0:00:33]}  d4 {[%clk 0:00:16]} 35. exd4 {[%clk 0:00:32]}  Qxd4 {[%clk 0:00:17]} 36. g3 {[%clk 0:00:28]}  Kf8 {[%clk 0:00:17]} 37. f5 {[%clk 0:00:21]}  e4 {[%clk 0:00:17]} 38. Kg2 {[%clk 0:00:22]}  e3 {[%clk 0:00:14]} 39. Kf3 {[%clk 0:00:20]}  Qd5+ {[%clk 0:00:14]} 40. Kxe3 {[%clk 0:00:17]}  Qxf5 {[%clk 0:00:15]} 41. g4 {[%clk 0:00:12]}  Qe5+ {[%clk 0:00:12]} 42. Kf3 {[%clk 0:00:13]}  Qxe2+ {[%clk 0:00:09]} 43. Kxe2 {[%clk 0:00:13]}  f5 {[%clk 0:00:10]} 44. g5 {[%clk 0:00:08]}  Kg7 {[%clk 0:00:08]} 45. h5 {[%clk 0:00:08]}  b5 {[%clk 0:00:06]} 46. Ke3 {[%clk 0:00:08]}  a5 {[%clk 0:00:07]} 47. Kf4 {[%clk 0:00:05]}  b4 {[%clk 0:00:07]} 48. Kxf5 {[%clk 0:00:05]}  a4 {[%clk 0:00:08]} 49. h6+ {[%clk 0:00:06]}  Kg8 {[%clk 0:00:07]} 50. Kf6 {[%clk 0:00:07]}  b3 {[%clk 0:00:06]} 51. h7+ {[%clk 0:00:07]}  Kxh7 {[%clk 0:00:06]} 52. Kxf7 {[%clk 0:00:08]}  bxa2 {[%clk 0:00:05]} 53. g6+ {[%clk 0:00:08]}  Kh6 {[%clk 0:00:05]} 54. g7 {[%clk 0:00:09]}  a1=Q {[%clk 0:00:04]} 55. g8=Q {[%clk 0:00:09]}  Qf1+ {[%clk 0:00:05]} 56. Ke7 {[%clk 0:00:09]}  Qe2+ {[%clk 0:00:05]} 57. Kd6 {[%clk 0:00:10]}  Qd3+ {[%clk 0:00:05]} 58. Kc5 {[%clk 0:00:10]}  Qc3+ {[%clk 0:00:05]} 59. Kb5 {[%clk 0:00:10]}  Qb3+ {[%clk 0:00:06]} 0-1


[Site "https://www.chess.com"]

[Event "Titled Tuesday Blitz January 31 Late 2023"]
[White "Golubka, Petro"]
[Black "Rian, Kapriaga"]
[WhiteFideId "14114224"]
[BlackFideId "7103263"]
[WhiteElo "2371"]
[BlackElo "2089"]
[Result "1-0"]
[Round "01"]
[TimeControl "180+2"]
[Date "2023.01.31"]
[WhiteClock "0:01:31"]
[BlackClock "0:00:03"]

1. e4 {[%clk 0:02:38]}  c6 {[%clk 0:02:58]} 2. d4 {[%clk 0:02:33]}  d5 {[%clk 0:02:57]} 3. e5 {[%clk 0:02:34]}  Bf5 {[%clk 0:02:55]} 4. Bd3 {[%clk 0:02:34]}  Bxd3 {[%clk 0:02:53]} 5. Qxd3 {[%clk 0:02:35]}  e6 {[%clk 0:02:53]} 6. f4 {[%clk 0:02:34]}  Nh6 {[%clk 0:02:50]} 7. Nf3 {[%clk 0:02:35]}  c5 {[%clk 0:02:47]} 8. c4 {[%clk 0:02:29]}  cxd4 {[%clk 0:02:36]} 9. Nxd4 {[%clk 0:02:22]}  Nc6 {[%clk 0:02:34]} 10. Nxc6 {[%clk 0:02:19]}  bxc6 {[%clk 0:02:34]} 11. Nc3 {[%clk 0:02:20]}  Qb6 {[%clk 0:02:08]} 12. Be3 {[%clk 0:02:17]}  Qa6 {[%clk 0:01:50]} 13. O-O-O {[%clk 0:02:12]}  Nf5 {[%clk 0:01:39]} 14. Bf2 {[%clk 0:02:02]}  h5 {[%clk 0:01:25]} 15. g3 {[%clk 0:02:00]}  Bb4 {[%clk 0:01:19]} 16. cxd5 {[%clk 0:01:59]}  Qxd3 {[%clk 0:01:17]} 17. Rxd3 {[%clk 0:02:00]}  cxd5 {[%clk 0:01:15]} 18. Kb1 {[%clk 0:01:36]}  a6 {[%clk 0:01:10]} 19. Rc1 {[%clk 0:01:34]}  Rc8 {[%clk 0:01:02]} 20. Na4 {[%clk 0:01:32]}  Rxc1+ {[%clk 0:01:01]} 21. Kxc1 {[%clk 0:01:33]}  Kd7 {[%clk 0:00:40]} 22. Rb3 {[%clk 0:01:32]}  Rc8+ {[%clk 0:00:37]} 23. Kd1 {[%clk 0:01:31]}  Rc4 {[%clk 0:00:04]} 24. Nb6+ {[%clk 0:01:30]}  Kc6 {[%clk 0:00:03]} 25. Nxc4 {[%clk 0:01:31]} 1-0


[Site "https://www.chess.com"]

[Event "Titled Tuesday Blitz January 31 Late 2023"]
[White "Akobian, Varuzhan"]
[Black "Gomes, Luiz Alexandre de Souza"]
[WhiteFideId "13300580"]
[BlackFideId "2102790"]
[WhiteElo "2591"]
[BlackElo "2254"]
[Result "1-0"]
[Round "01"]
[TimeControl "180+2"]
[Date "2023.01.31"]
[WhiteClock "0:01:23"]
[BlackClock "0:00:16"]

1. d4 {[%clk 0:03:00]}  d5 {[%clk 0:02:56]} 2. c4 {[%clk 0:03:00]}  e6 {[%clk 0:02:56]} 3. Nc3 {[%clk 0:02:58]}  Nf6 {[%clk 0:02:56]} 4. cxd5 {[%clk 0:02:57]}  exd5 {[%clk 0:02:56]} 5. Bg5 {[%clk 0:02:57]}  c6 {[%clk 0:02:56]} 6. Qc2 {[%clk 0:02:57]}  Be7 {[%clk 0:02:56]} 7. e3 {[%clk 0:02:56]}  Nbd7 {[%clk 0:02:55]} 8. Bd3 {[%clk 0:02:55]}  O-O {[%clk 0:02:55]} 9. Nge2 {[%clk 0:02:54]}  Re8 {[%clk 0:02:55]} 10. O-O {[%clk 0:02:54]}  Nf8 {[%clk 0:02:56]} 11. f3 {[%clk 0:02:53]}  g6 {[%clk 0:02:54]} 12. Rad1 {[%clk 0:02:51]}  Ne6 {[%clk 0:02:54]} 13. Bh4 {[%clk 0:02:51]}  Ng7 {[%clk 0:02:55]} 14. e4 {[%clk 0:02:50]}  Ne6 {[%clk 0:02:31]} 15. e5 {[%clk 0:02:48]}  Nh5 {[%clk 0:02:30]} 16. Bxe7 {[%clk 0:02:47]}  Qxe7 {[%clk 0:02:29]} 17. f4 {[%clk 0:02:44]}  Qh4 {[%clk 0:02:12]} 18. Qc1 {[%clk 0:02:20]}  Bd7 {[%clk 0:02:08]} 19. Qe3 {[%clk 0:02:19]}  a6 {[%clk 0:02:06]} 20. f5 {[%clk 0:02:19]}  Ng5 {[%clk 0:01:53]} 21. Ng3 {[%clk 0:01:52]}  c5 {[%clk 0:01:12]} 22. Nxh5 {[%clk 0:01:46]}  Qxh5 {[%clk 0:01:11]} 23. Nxd5 {[%clk 0:01:44]}  cxd4 {[%clk 0:01:00]} 24. Nf6+ {[%clk 0:01:43]}  Kh8 {[%clk 0:01:00]} 25. Qxd4 {[%clk 0:01:43]}  Qh6 {[%clk 0:00:44]} 26. e6 {[%clk 0:01:37]}  Qg7 {[%clk 0:00:42]} 27. exd7 {[%clk 0:01:36]}  Red8 {[%clk 0:00:29]} 28. Bc4 {[%clk 0:01:33]}  b5 {[%clk 0:00:26]} 29. Bb3 {[%clk 0:01:31]}  a5 {[%clk 0:00:23]} 30. h4 {[%clk 0:01:31]}  a4 {[%clk 0:00:21]} 31. Bd5 {[%clk 0:01:29]}  Ra6 {[%clk 0:00:17]} 32. hxg5 {[%clk 0:01:29]}  Rd6 {[%clk 0:00:16]} 33. Qe5 {[%clk 0:01:23]} 1-0


[Site "https://www.chess.com"]

[Event "Titled Tuesday Blitz January 31 Late 2023"]
[White "Hoffmann, Asa"]
[Black "Alex_Sahakyan2006"]
[WhiteFideId "2001470"]
[WhiteElo "2185"]
[BlackElo "2668"]
[Result "1-0"]
[Round "01"]
[TimeControl "180+2"]
[Date "2023.01.31"]
[WhiteClock "0:00:10"]
[BlackClock "0:00:02"]

1. d4 {[%clk 0:02:54]}  Nf6 {[%clk 0:02:59]} 2. Bg5 {[%clk 0:02:50]}  Ne4 {[%clk 0:02:54]} 3. Bf4 {[%clk 0:02:50]}  c5 {[%clk 0:02:47]} 4. f3 {[%clk 0:02:50]}  Qa5+ {[%clk 0:02:46]} 5. c3 {[%clk 0:02:50]}  Nf6 {[%clk 0:02:42]} 6. d5 {[%clk 0:02:49]}  g6 {[%clk 0:02:37]} 7. e4 {[%clk 0:02:49]}  d6 {[%clk 0:02:36]} 8. Qd2 {[%clk 0:02:48]}  h5 {[%clk 0:02:30]} 9. Na3 {[%clk 0:02:48]}  Nbd7 {[%clk 0:02:30]} 10. Nh3 {[%clk 0:02:44]}  Bg7 {[%clk 0:02:27]} 11. Be2 {[%clk 0:02:43]}  a6 {[%clk 0:02:21]} 12. O-O {[%clk 0:02:39]}  b5 {[%clk 0:02:17]} 13. Nf2 {[%clk 0:02:33]}  Qc7 {[%clk 0:02:07]} 14. Rfe1 {[%clk 0:02:28]}  Rb8 {[%clk 0:02:05]} 15. Nc2 {[%clk 0:02:27]}  h4 {[%clk 0:02:04]} 16. h3 {[%clk 0:02:25]}  Nh5 {[%clk 0:02:04]} 17. Be3 {[%clk 0:02:23]}  Ng3 {[%clk 0:02:01]} 18. Ng4 {[%clk 0:02:19]}  Nb6 {[%clk 0:01:57]} 19. Bf4 {[%clk 0:02:13]}  Nxe2+ {[%clk 0:01:53]} 20. Qxe2 {[%clk 0:02:12]}  Bxg4 {[%clk 0:01:51]} 21. fxg4 {[%clk 0:02:09]}  Nc4 {[%clk 0:01:50]} 22. Ne3 {[%clk 0:02:01]}  Ne5 {[%clk 0:01:48]} 23. a4 {[%clk 0:01:57]}  c4 {[%clk 0:01:44]} 24. axb5 {[%clk 0:01:54]}  axb5 {[%clk 0:01:44]} 25. Nc2 {[%clk 0:01:54]}  Nd3 {[%clk 0:01:41]} 26. Rf1 {[%clk 0:01:51]}  Nxf4 {[%clk 0:01:26]} 27. Rxf4 {[%clk 0:01:50]}  Be5 {[%clk 0:01:26]} 28. Rf3 {[%clk 0:01:46]}  Qb6+ {[%clk 0:01:15]} 29. Kh1 {[%clk 0:01:45]}  O-O {[%clk 0:01:13]} 30. Nb4 {[%clk 0:01:44]}  Ra8 {[%clk 0:01:12]} 31. Raf1 {[%clk 0:01:42]}  Bg3 {[%clk 0:01:00]} 32. Nc6 {[%clk 0:01:36]}  e5 {[%clk 0:00:59]} 33. Rf6 {[%clk 0:01:19]}  Qc7 {[%clk 0:00:55]} 34. g5 {[%clk 0:01:15]}  Qd7 {[%clk 0:00:48]} 35. Qf3 {[%clk 0:01:07]}  Kg7 {[%clk 0:00:43]} 36. Qe3 {[%clk 0:00:59]}  Ra2 {[%clk 0:00:36]} 37. Qe2 {[%clk 0:00:54]}  Bf4 {[%clk 0:00:30]} 38. R6xf4 {[%clk 0:00:50]}  exf4 {[%clk 0:00:31]} 39. Qd2 {[%clk 0:00:50]}  f6 {[%clk 0:00:27]} 40. Qxf4 {[%clk 0:00:48]}  f5 {[%clk 0:00:21]} 41. Nd4 {[%clk 0:00:46]}  Re8 {[%clk 0:00:18]} 42. exf5 {[%clk 0:00:44]}  Rxb2 {[%clk 0:00:17]} 43. f6+ {[%clk 0:00:42]}  Kg8 {[%clk 0:00:14]} 44. Ne6 {[%clk 0:00:40]}  Qf7 {[%clk 0:00:13]} 45. Qxh4 {[%clk 0:00:39]}  Re2 {[%clk 0:00:12]} 46. Qf4 {[%clk 0:00:33]}  Re5 {[%clk 0:00:13]} 47. Rb1 {[%clk 0:00:29]}  Rxd5 {[%clk 0:00:12]} 48. Nd4 {[%clk 0:00:25]}  Rde5 {[%clk 0:00:09]} 49. Nxb5 {[%clk 0:00:23]}  Re1+ {[%clk 0:00:09]} 50. Rxe1 {[%clk 0:00:23]}  Rxe1+ {[%clk 0:00:10]} 51. Kh2 {[%clk 0:00:23]}  Qd5 {[%clk 0:00:09]} 52. Nxd6 {[%clk 0:00:21]}  Qe5 {[%clk 0:00:08]} 53. f7+ {[%clk 0:00:19]}  Kf8 {[%clk 0:00:07]} 54. Qxe5 {[%clk 0:00:17]}  Rxe5 {[%clk 0:00:08]} 55. Nxc4 {[%clk 0:00:16]}  Rxg5 {[%clk 0:00:08]} 56. Nd6 {[%clk 0:00:15]}  Rd5 {[%clk 0:00:07]} 57. Ne4 {[%clk 0:00:14]}  Kxf7 {[%clk 0:00:08]} 58. Kg3 {[%clk 0:00:14]}  Rd3+ {[%clk 0:00:06]} 59. Kf4 {[%clk 0:00:13]}  Kg7 {[%clk 0:00:06]} 60. c4 {[%clk 0:00:13]}  Kf7 {[%clk 0:00:04]} 61. c5 {[%clk 0:00:13]}  Rb3 {[%clk 0:00:03]} 62. h4 {[%clk 0:00:12]}  Rb2 {[%clk 0:00:03]} 63. g4 {[%clk 0:00:12]}  Ke6 {[%clk 0:00:01]} 64. h5 {[%clk 0:00:12]}  gxh5 {[%clk 0:00:01]} 65. gxh5 {[%clk 0:00:12]}  Rh2 {[%clk 0:00:02]} 66. Ng3 {[%clk 0:00:10]} 1-0


[Site "https://www.chess.com"]